fUSD/lending_fUSD_20251217
["ID","MTS","AMOUNT","RATE_DAILY","PERIOD"]
[398930417,1766003439743,-48517.89028324,0.0001399,2]
[398930419,1766003439753,-271.0,0.00013991,2]
[398930421,1766003439763,-715.0,0.00014003,2]
[398930423,1766003439772,-424.64,0.00014018,2]
[398930424,1766003439782,-1571.0,0.00014045,2]
[398930426,1766003439793,-300.0,0.00014072,2]
[398930428,1766003439802,-250.0,0.00014072,2]
[398930431,1766003439811,-300.0,0.00014072,2]
[398930433,1766003439821,-300.0,0.00014072,2]
[398930435,1766003439830,-195.0,0.00014072,2]
[398930436,1766003439839,-240.0,0.00014073,2]
[398930438,1766003439848,-420.0,0.00014108,2]
[398930440,1766003439857,-500.0,0.00014147,2]
[398930442,1766003439867,-1680.0,0.00014149,2]
[398930444,1766003439876,-3222.97,0.00014192,2]
[398930446,1766003439885,-166.66,0.00014221,2]
[398930448,1766003439894,-1805.0,0.00014226,2]
[398930450,1766003439904,-200.0,0.00014238,2]
[398930452,1766003439912,-200.0,0.00014238,2]
[398930454,1766003439921,-500.0,0.00014238,2]
[398930456,1766003439931,-1094.0,0.00014255,2]
[398930458,1766003439940,-511.0,0.00014283,2]
[398930459,1766003439949,-788.0,0.00014312,2]
[398930460,1766003439958,-2500.0,0.00014399,2]
[398930461,1766003439967,-500.0,0.00014421,2]
[398930462,1766003439975,-1500.0,0.00014468,2]
[398930463,1766003439985,-1500.0,0.00014468,2]
[398930464,1766003439994,-1500.0,0.00014468,2]
[398930465,1766003440004,-1500.0,0.00014468,2]
[398930466,1766003440013,-255.0,0.00014481,2]
[398930467,1766003440022,-311.05,0.00014483,2]
[398930468,1766003440031,-500.0,0.00014493,2]
[398930469,1766003440040,-500.0,0.00014493,2]
[398930470,1766003440050,-500.0,0.00014493,2]
[398930471,1766003440059,-500.0,0.00014493,2]
[398930472,1766003440068,-500.0,0.00014493,2]
[398930473,1766003440077,-500.0,0.00014493,2]
[398930474,1766003440086,-500.0,0.00014493,2]
[398930475,1766003440095,-500.0,0.00014493,2]
[398930476,1766003440104,-500.0,0.00014493,2]
[398930477,1766003440113,-500.0,0.00014493,2]
[398930478,1766003440122,-415.26254298,0.00014493,2]
[398930482,1766003440131,-500.0,0.00014493,2]
[398930484,1766003440140,-500.0,0.00014493,2]
[398930485,1766003440150,-500.0,0.00014493,2]
[398930486,1766003440159,-500.0,0.00014493,2]
[398930487,1766003440168,-193.73641239,0.00014493,2]
[398930488,1766003440177,-300.0,0.00014494,2]
[398930489,1766003440186,-300.0,0.00014494,2]
[398930490,1766003440196,-300.0,0.00014494,2]
[398930491,1766003440205,-300.0,0.00014494,2]
[398930492,1766003440214,-302.64270691,0.00014494,2]
[398930493,1766003440223,-300.0,0.00014494,2]
[398930494,1766003440232,-193.0,0.00014494,2]
[398930495,1766003440241,-195.0,0.00014494,2]
[398930496,1766003440251,-300.0,0.00014494,2]
[398930497,1766003440260,-9999.99,0.00014504,2]
[398930498,1766003440269,-8570.61,0.00014504,2]
[398930499,1766003440279,-23607.62,0.00014504,2]
[398930500,1766003440288,-500.0,0.00014511,2]
[398930501,1766003440298,-19663.9525458,0.00014512,2]
[398930502,1766003440307,-300.0,0.0001455,2]
[398930503,1766003440317,-300.0,0.0001455,2]
[398930504,1766003440326,-300.0,0.0001455,2]
[398930505,1766003440336,-300.0,0.0001455,2]
[398930506,1766003440346,-300.0,0.0001455,2]
[398930507,1766003440355,-250.0,0.0001455,2]
[398930508,1766003440365,-311.05,0.0001459,2]
[398930509,1766003440375,-311.05,0.0001459,2]
[398930510,1766003440384,-500.0,0.00014599,2]
[398930511,1766003440393,-46731.99050613,0.000146,2]
[398930512,1766003440419,-12018.8488185,0.000146,2]
[398930513,1766003440430,-5396.48880239,0.000146,2]
[398930514,1766003440441,-259.36743815,0.000146,2]
[398930515,1766003440452,-16147.5638793,0.000146,2]
[398930516,1766003440462,-183.04,0.00014612,2]
[398930517,1766003440471,-1444.66266735,0.00014626,2]
[398930518,1766003440480,-311.05,0.00014626,2]
[398930519,1766003440491,-311.05,0.00014626,2]
[398930520,1766003440500,-3471.76,0.00014626,2]
[398930521,1766003440510,-500.0,0.00014635,2]
[398930522,1766003440519,-460.64,0.00014635,2]
[398930523,1766003440528,-760000.0,0.00014636,2]
[398930524,1766003440538,-500.0,0.00014658,2]
[398930525,1766003440548,-500.0,0.00014658,2]
[398930526,1766003440558,-500.0,0.00014658,2]
[398930527,1766003440568,-500.0,0.00014658,2]
[398930529,1766003440578,-1078.56,0.00014658,2]
[398930530,1766003440588,-500.0,0.00014658,2]
[398930531,1766003440597,-1510.25,0.00014658,2]
[398930532,1766003440607,-1510.25,0.00014658,2]
[398930533,1766003440616,-1510.25,0.00014658,2]
[398930534,1766003440626,-1510.25,0.00014658,2]
[398930535,1766003440635,-1510.25,0.00014658,2]
[398930536,1766003440645,-1510.25,0.00014658,2]
[398930537,1766003440654,-1510.25,0.00014658,2]
[398930538,1766003440663,-1510.25,0.00014658,2]
[398930539,1766003440673,-1510.25,0.00014658,2]
[398930540,1766003440682,-1510.25,0.00014658,2]
[398930541,1766003440692,-1510.25,0.00014658,2]
[398930542,1766003440702,-1510.25,0.00014658,2]
[398930543,1766003440713,-1510.25,0.00014658,2]
[398930544,1766003440723,-1510.25,0.00014658,2]
[398930545,1766003440733,-1510.25,0.00014658,2]
[398930546,1766003440743,-1510.25,0.00014658,2]
[398930547,1766003440753,-1510.25,0.00014658,2]
[398930548,1766003440763,-1510.25,0.00014658,2]
[398930549,1766003440773,-1510.25,0.00014658,2]
[398930550,1766003440782,-1510.25,0.00014658,2]
[398930552,1766003440794,-1510.25,0.00014658,2]
[398930554,1766003440804,-1510.25,0.00014658,2]
[398930555,1766003440813,-1510.25,0.00014658,2]
[398930556,1766003440823,-1510.46536899,0.00014658,2]
[398930557,1766003440833,-500.0,0.00014658,2]
[398930558,1766003440843,-500.0,0.00014658,2]
[398930559,1766003440852,-500.0,0.00014658,2]
[398930560,1766003440862,-500.0,0.00014658,2]
[398930561,1766003440871,-500.0,0.00014658,2]
[398930562,1766003440880,-500.0,0.00014658,2]
[398930563,1766003440889,-500.68934794,0.00014658,2]
[398930564,1766003440898,-300.0,0.00014658,2]
[398930565,1766003440907,-300.0,0.00014658,2]
[398930566,1766003440916,-300.3914719,0.00014658,2]
[398930567,1766003440925,-500.0,0.00014658,2]
[398930568,1766003440934,-500.0,0.00014658,2]
[398930569,1766003440943,-166.66,0.00014675,2]
[398930570,1766003440953,-500.0,0.00014695,2]
[398930571,1766003440962,-19663.95254572,0.00014779,2]
[398930572,1766003440972,-200.0,0.00014786,2]
[398930573,1766003440981,-200.0,0.00014786,2]
[398930574,1766003440990,-500.0,0.00014786,2]
[398930575,1766003440999,-500.0,0.0001481,2]
[398930576,1766003441009,-150.53901239,0.000149,2]
[398930577,1766003441018,-150.53901239,0.000149,2]
[398930578,1766003441027,-150.53901239,0.000149,2]
[398930579,1766003441036,-1600.0,0.00014928,2]
[398930580,1766003441045,-500.0,0.00014969,2]
[398930581,1766003441054,-500.0,0.00014986,2]
[398930582,1766003441063,-20213.7134523,0.00015,2]
[398930583,1766003441072,-2000.0,0.00015016,2]
[398930584,1766003441081,-500.0,0.00015016,2]
[398930585,1766003441090,-1649.79191981,0.00015016,2]
[398930586,1766003441099,-19663.95254572,0.00015046,2]
[398930587,1766003441108,-253.87,0.00015068,2]
[398930588,1766003441117,-166.66,0.00015129,2]
[398930589,1766003441127,-5893.7223,0.00015235,2]
[398930590,1766003441136,-1000.0,0.00015235,2]
[398930591,1766003441145,-500.0,0.00015243,2]
[398930592,1766003441154,-19663.95254572,0.00015313,2]
[398930593,1766003441163,-200.0,0.00015334,2]
[398930594,1766003441172,-500.0,0.00015334,2]
[398930595,1766003441181,-500.0,0.00015334,2]
[398930596,1766003441190,-500.0,0.00015334,2]
[398930597,1766003441199,-500.0,0.00015334,2]
[398930598,1766003441209,-500.0,0.00015334,2]
[398930599,1766003441219,-500.0,0.00015334,2]
[398930600,1766003441229,-500.0,0.00015334,2]
[398930601,1766003441239,-500.0,0.00015334,2]
[398930602,1766003441249,-500.0,0.00015334,2]
[398930603,1766003441258,-500.0,0.00015334,2]
[398930604,1766003441267,-500.0,0.00015334,2]
[398930605,1766003441276,-500.0,0.00015334,2]
[398930606,1766003441286,-500.0,0.00015334,2]
[398930607,1766003441295,-500.0,0.00015334,2]
[398930608,1766003441304,-500.0,0.00015334,2]
[398930609,1766003441312,-532.30126089,0.00015334,2]
[398930610,1766003441323,-507.58085113,0.00015334,2]
[398930611,1766003441333,-500.0,0.00015334,2]
[398930612,1766003441342,-500.0,0.00015334,2]
[398930613,1766003441351,-500.0,0.00015334,2]
[398930614,1766003441360,-286.90864955,0.00015334,2]
[398930615,1766003441369,-500.0,0.00015334,2]
[398930616,1766003441378,-500.0,0.00015334,2]
[398930617,1766003441387,-500.0,0.00015334,2]
[398930618,1766003441396,-500.0,0.00015334,2]
[398930619,1766003441405,-144111.5,0.00015335,2]
[398930620,1766003441415,-500.0,0.00015377,2]
[398930621,1766003441424,-500.0,0.00015377,2]
[398930622,1766003441436,-505.62829288,0.000154,2]
[398930623,1766003441445,-500.0,0.00015455,2]
[398930624,1766003441456,-500.0,0.00015455,2]
[398930625,1766003441466,-500.0,0.00015455,2]
[398930626,1766003441478,-1078.56,0.00015455,2]
[398930627,1766003441488,-500.0,0.00015455,2]
[398930628,1766003441497,-500.0,0.00015455,2]
[398930629,1766003441813,-500.0,0.00015455,2]
[398930630,1766003441823,-48436.0,0.00015456,2]
[398930631,1766003441833,-1000.0,0.00015464,2]
[398930632,1766003441842,-187.10375317,0.00015473,2]
[398930633,1766003441851,-500.0,0.00015473,2]
[398930634,1766003441860,-270.30071685,0.00015473,2]
[398930635,1766003441869,-530.10800238,0.00015473,2]
[398930636,1766003441878,-500.0,0.00015473,2]
[398930637,1766003441887,-500.0,0.00015473,2]
[398930638,1766003441896,-500.0,0.00015473,2]
[398930639,1766003441905,-500.0,0.00015473,2]
[398930640,1766003441914,-500.0,0.00015473,2]
[398930641,1766003441923,-500.0,0.00015473,2]
[398930642,1766003441932,-500.0,0.00015473,2]
[398930643,1766003441942,-500.0,0.00015473,2]
[398930644,1766003441951,-500.0,0.00015473,2]
[398930645,1766003441960,-500.0,0.00015473,2]
[398930646,1766003441969,-500.0,0.00015473,2]
[398930647,1766003441978,-500.0,0.00015473,2]
[398930648,1766003441987,-587.0,0.00015474,2]
[398930649,1766003441997,-1223.85566648,0.00015511,2]
[398930650,1766003442006,-2351.0,0.00015564,2]
[398930651,1766003442015,-718.02510234,0.00015564,2]
[398930652,1766003442025,-19663.95254572,0.0001558,2]
[398930653,1766003442035,-166.66,0.00015584,2]
[398930654,1766003442044,-433.0,0.00015685,2]
[398930655,1766003442053,-693.08117626,0.000158,2]
[398930656,1766003442062,-5679.68819907,0.000158,2]
[398930657,1766003442071,-2227.88016117,0.00015807,2]
[398930658,1766003442081,-19663.95254572,0.00015848,2]
[398930659,1766003442090,-1223.85566648,0.00015862,2]
[398930660,1766003442100,-200.0,0.00015882,2]
[398930661,1766003442109,-500.0,0.00015882,2]
[398930662,1766003442119,-721.0,0.0001589,2]
[398930663,1766003442129,-721.0,0.0001589,2]
[398930664,1766003442138,-721.0,0.0001589,2]
[398930665,1766003442148,-373.98693358,0.000159,2]
[398930666,1766003442158,-373.98693355,0.000159,2]
[398930667,1766003442167,-373.98693355,0.000159,2]
[398930668,1766003442177,-373.98693355,0.000159,2]
[398930669,1766003442186,-373.98693355,0.000159,2]
[398930670,1766003442195,-373.98693355,0.000159,2]
[398930671,1766003442204,-302.01604807,0.000159,2]
[398930672,1766003442214,-151.0,0.00015997,2]
[398930673,1766003442225,-11112.25512909,0.00016,2]
[398930674,1766003442234,-203045.14519811,0.00016,2]
[398930675,1766003442244,-458605.22589763,0.00016,4]
[398930676,1766003442254,-415.16425882,0.00016,2]
[398930677,1766003442263,-1000.0,0.00016021,2]
[398930678,1766003442272,-1000.0,0.00016021,2]
[398930679,1766003442281,-1000.0,0.00016021,2]
[398930680,1766003442290,-1000.0,0.00016021,2]
[398930681,1766003442299,-1000.0,0.00016021,2]
[398930682,1766003442308,-1000.0,0.00016021,2]
[398930683,1766003442317,-1000.0,0.00016021,2]
[398930684,1766003442327,-1000.0,0.00016021,2]
[398930685,1766003442336,-1000.0,0.00016021,2]
[398930686,1766003442345,-1000.0,0.00016021,2]
[398930687,1766003442354,-1000.0,0.00016021,2]
[398930688,1766003442363,-1000.0,0.00016021,2]
[398930689,1766003442372,-1000.0,0.00016021,2]
[398930690,1766003442381,-166.66,0.00016038,2]
[398930691,1766003442390,-19663.95254572,0.00016115,2]
[398930692,1766003442399,-9999.99,0.00016116,2]
[398930693,1766003442409,-160.29,0.00016169,2]
[398930694,1766003442418,-5000.00429432,0.000162,5]
[398930695,1766003442427,-1223.85566648,0.00016213,2]
[398930696,1766003442436,-500.0,0.00016215,2]
[398930697,1766003442446,-19663.95254572,0.00016382,2]
[398930698,1766003442455,-228.0,0.000164,2]
[398930699,1766003442464,-319.0,0.000164,2]
[398930700,1766003442474,-182.0,0.000164,2]
[398930701,1766003442483,-183.11478265,0.000164,2]
[398930702,1766003442492,-302.01604806,0.000164,2]
[398930703,1766003442501,-207.4,0.00016429,2]
[398930704,1766003442510,-500.0,0.00016437,2]
[398930705,1766003442519,-225.73,0.00016438,2]
[398930706,1766003442529,-800.0,0.00016438,2]
[398930707,1766003442539,-500.0,0.00016521,2]
[398930708,1766003442548,-1223.85566648,0.00016565,2]
[398930709,1766003442557,-1000.0,0.00016568,2]
[398930710,1766003442566,-211.82211152,0.00016568,2]
[398930711,1766003442575,-1570.99793084,0.00016568,2]
[398930712,1766003442584,-1500.0,0.00016568,2]
[398930713,1766003442594,-1500.0,0.00016568,2]
[398930714,1766003442603,-1591.38673749,0.00016568,2]
[398930715,1766003442612,-1005.15949954,0.00016568,2]
[398930716,1766003442621,-1500.0,0.00016568,2]
[398930717,1766003442631,-1500.0,0.00016568,2]
[398930718,1766003442640,-412.77072923,0.00016568,2]
[398930719,1766003442649,-1500.0,0.00016568,2]
[398930720,1766003442658,-1500.0,0.00016568,2]
[398930721,1766003442668,-1600.0,0.00016586,2]
[398930722,1766003442677,-358.48883582,0.000166,2]
[398930723,1766003442686,-19663.95254572,0.00016649,2]
[398930724,1766003442695,-424.64,0.00016652,2]
[398930725,1766003442704,-176.674,0.00016727,2]
[398930726,1766003442715,-210.0,0.00016827,2]
[398930727,1766003442724,-500.0,0.00016898,2]
[398930728,1766003442734,-500.0,0.00016899,2]
[398930729,1766003442744,-570.33467883,0.000169,2]
[398930730,1766003442754,-4632.69799175,0.000169,2]
[398930731,1766003442763,-1949.78015876,0.000169,2]
[398930732,1766003442772,-302.01604806,0.000169,2]
[398930733,1766003442782,-19663.95254572,0.00016916,2]
[398930734,1766003442792,-1223.85566648,0.00016916,2]
[398930735,1766003442801,-231.0,0.00016972,2]
[398930736,1766003442810,-150.0,0.00016973,2]
[398930737,1766003442819,-150.0,0.00016973,2]
[398930738,1766003442829,-736.0,0.00016982,2]
[398930739,1766003442838,-500.0,0.00016986,2]
[398930740,1766003442847,-500.0,0.00016986,2]
[398930741,1766003442857,-3095.847,0.00016986,2]
[398930742,1766003442866,-500.0,0.00016986,2]
[398930743,1766003442875,-1444.66266735,0.0001699,2]
[398930744,1766003442884,-1444.66266735,0.0001699,2]
[398930745,1766003442894,-500.0,0.00016996,2]
[398930746,1766003442903,-500.0,0.00016996,2]
[398930748,1766003442912,-500.0,0.00016996,2]
[398930750,1766003442922,-500.0,0.00016996,2]
[398930752,1766003442931,-311.95,0.00016996,2]
[398930755,1766003442940,-500.0,0.00016996,2]
[398930758,1766003442950,-500.0,0.00016996,2]
[398930760,1766003442959,-500.0,0.00016996,2]
[398930762,1766003442968,-250.0,0.00016997,2]
[398930764,1766003442978,-151.0,0.00016997,2]
[398930766,1766003442987,-500.0,0.00016998,2]
[398930768,1766003442997,-562.26,0.00016999,2]
[398930770,1766003443006,-2000.0,0.00017,2]
[398930772,1766003443015,-2000.0,0.00017,2]
[398930774,1766003443024,-2000.0,0.00017,2]
[398930776,1766003443035,-2000.0,0.00017,2]
[398930778,1766003443044,-2000.0,0.00017,2]
[398930781,1766003443053,-2000.0,0.00017,2]
[398930783,1766003443062,-2000.0,0.00017,2]
[398930786,1766003443071,-2000.0,0.00017,2]
[398930788,1766003443081,-2000.0,0.00017,2]
[398930791,1766003443090,-2000.0,0.00017,2]
[398930794,1766003443099,-2000.0,0.00017,2]
[398930795,1766003443108,-2000.0,0.00017,2]
[398930797,1766003443117,-1000.0,0.00017,2]
[398930799,1766003443126,-1000.0,0.00017,2]
[398930801,1766003443137,-1000.0,0.00017,2]
[398930803,1766003443146,-1000.0,0.00017,2]
[398930806,1766003443155,-1000.0,0.00017,2]
[398930809,1766003443165,-1000.0,0.00017,2]
[398930811,1766003443173,-1000.0,0.00017,2]
[398930814,1766003443182,-1000.0,0.00017,2]
[398930817,1766003443191,-1000.0,0.00017,2]
[398930819,1766003443200,-250.0,0.00017,2]
[398930821,1766003443210,-2000.0,0.00017,2]
[398930823,1766003443219,-4719920.7944737,0.00017,2]
[398930832,1766003443365,-286.65438412,0.00017,2]
[398930833,1766003443376,-673.92286084,0.00017,2]
[398930834,1766003443386,-308.57310001,0.00017,2]
[398930835,1766003443397,-23936.94091191,0.00017,2]
[398930836,1766003443408,-290.80846488,0.00017,2]
[398930838,1766003443468,-2877.10776756,0.00017,2]
[398930843,1766003443588,-999.0,0.00017,2]
[398930844,1766003443600,-2731.44,0.00017,2]
[398930845,1766003443611,-860.86,0.00017,2]
[398930846,1766003443622,-1183.04254938,0.00017,2]
[398930847,1766003443642,-2589.34,0.00017,2]
[398930848,1766003443682,-4089.02672651,0.00017,2]
[398930849,1766003443693,-321.88509748,0.00017,2]
[398930862,1766003447067,-36654.01430941,0.00017,2]
[398930863,1766003447079,-521.11876182,0.00017,2]
[398930864,1766003447091,-616.41039104,0.00017,2]
[398930865,1766003447102,-6403.69871666,0.00017,2]
[398930866,1766003447121,-356.15,0.00017,2]
[398930867,1766003447133,-1218.6,0.00017,2]
[398930868,1766003447144,-684.39999965,0.00017,2]
[398930869,1766003447156,-8034.96227502,0.00017,2]
[398930870,1766003447168,-357.85910194,0.00017,2]
[398930871,1766003447179,-903.0,0.00017,2]
[398930872,1766003447191,-434097.18003241,0.00017,2]
[398930873,1766003447202,-7322.33,0.00017,2]
[398930874,1766003468218,999.0,7.945e-05,2]
[398930885,1766003651342,999.0,0.00014029,3]
[398930888,1766003729935,166.73,0.00010798,2]
[398930892,1766003894534,-500.0,0.00013077,2]
[398930893,1766003894556,-250.0,0.00013225,2]
[398930894,1766003894577,-500.0,0.00013373,2]
[398930895,1766003894602,-500.0,0.00013373,2]
[398930896,1766003894622,-500.0,0.00013373,2]
[398930897,1766003894643,-500.0,0.00013373,2]
[398930898,1766003894663,-500.0,0.00013373,2]
[398930899,1766003894683,-500.0,0.00013373,2]
[398930900,1766003939615,-195.715605,0.00013325,2]
[398930901,1766003939636,-300.0,0.00013393,2]
[398930902,1766003939657,-3240.0,0.00013394,2]
[398930903,1766003939679,-250.0,0.00013465,2]
[398930904,1766003939701,-1439.284395,0.00013499,2]
[398930920,1766004628955,367.55,6.354e-05,2]
[398930921,1766004629220,367.55,6.689e-05,2]
[398930922,1766004629475,367.55,7.023e-05,2]
[398930923,1766004629895,367.55,7.358e-05,2]
[398930924,1766004630133,367.55,7.692e-05,2]
[398930925,1766004630346,367.55,8.027e-05,2]
[398930926,1766004630582,367.55,8.361e-05,2]
[398930927,1766004630805,367.55,8.695e-05,2]
[398930928,1766004631022,367.55,9.03e-05,2]
[398930929,1766004631261,367.55,9.364e-05,2]
[398930930,1766004631496,367.55,9.699e-05,2]
[398930931,1766004631695,367.55,0.00010033,2]
[398930932,1766004631897,367.55,0.00010368,2]
[398931051,1766004633286,367.55,0.00010702,2]
[398931052,1766004633303,-271.54991355,0.00012832,2]
[398931053,1766004633315,-1251.37727158,0.00012832,2]
[398931054,1766004633327,-2032.55281487,0.00012832,2]
[398931055,1766004633336,-2227.84,0.00012832,2]
[398931056,1766004633345,-289.44,0.00012965,2]
[398931057,1766004633354,-422.81465698,0.00013372,2]
[398931058,1766004633366,-777.18534302,0.00013372,2]
[398931059,1766004633381,-500.0,0.00013373,2]
[398931060,1766004633397,-500.0,0.00013373,2]
[398931061,1766004633406,-221.32208183,0.00013373,2]
[398931062,1766004633417,-372.92193596,0.00013373,2]
[398931063,1766004633427,-300.0,0.0001349,2]
[398931064,1766004633436,-300.0,0.0001349,2]
[398931065,1766004633446,-2341.2151,0.00013491,2]
[398931066,1766004633457,-398.360233,0.00013491,2]
[398931067,1766004633477,-296.40886238,0.00013491,2]
[398931068,1766004633490,-3207.69999999,0.00013491,2]
[398931069,1766004633514,-12768.08439754,0.00013491,2]
[398931070,1766004633525,-680.07227008,0.00013491,2]
[398931071,1766004633537,-277.20013625,0.00013491,2]
[398931072,1766004633552,-310.92632937,0.00013491,2]
[398931073,1766004633568,-500.0,0.00013498,2]
[398931074,1766004633580,-150.0,0.00013498,2]
[398931075,1766004633593,-288.25846905,0.00013498,2]
[398931076,1766004633638,367.55,0.00011037,2]
[398931077,1766004633655,-1262.90153095,0.00013498,2]
[398931078,1766004633666,-1354.31229633,0.00013499,2]
[398931079,1766004633678,-2817.90653405,0.00013499,2]
[398931080,1766004633756,367.55,0.00011371,2]
[398931081,1766004633833,367.55,0.00011705,2]
[398931082,1766004633891,367.55,0.0001204,2]
[398931107,1766004639184,-367.55,0.00012374,2]
[398931108,1766004639194,-367.55,0.00012709,2]
[398931109,1766004639204,-261.97243829,0.00013497,2]
[398931110,1766004639213,-1836.46434171,0.00013499,2]
[398931111,1766004639224,-17979.58882791,0.00013499,2]
[398931112,1766004639233,-6680.3459,0.00013499,2]
[398931113,1766004639242,-150.75,0.00013499,2]
[398931114,1766004639252,-7542.7993,0.00013562,2]
[398931115,1766004639261,-3483.157,0.00013562,2]
[398931116,1766004639270,-176.455,0.00013562,2]
[398931117,1766004639280,-150.99,0.00013584,2]
[398931118,1766004639289,-398.39,0.00013584,2]
[398931119,1766004639298,-7618.35,0.00013584,2]
[398931120,1766004639307,-9999.99,0.00013585,2]
[398931121,1766004639317,-9999.99,0.00013585,2]
[398931122,1766004639328,-999.99,0.00013585,2]
[398931123,1766004639338,-19889.47490733,0.00013585,2]
[398931124,1766004639348,-1398.69219031,0.00013585,2]
[398931125,1766004639359,-436.04160782,0.0001359,2]
[398931126,1766004639367,-510.31,0.00013591,2]
[398931127,1766004639376,-9999.99,0.00013591,2]
[398931128,1766004639385,-404.9,0.00013591,2]
[398931129,1766004639394,-150.99,0.00013591,2]
[398931130,1766004639404,-9999.99,0.00013591,2]
[398931131,1766004639415,-7183.72,0.00013591,2]
[398931132,1766004639424,-1530.11,0.00013591,2]
[398931133,1766004639434,-500.0,0.00013591,2]
[398931134,1766004639444,-151.0,0.00013591,2]
[398931135,1766004639454,-200.0,0.00013591,2]
[398931136,1766004639463,-151.0,0.00013591,2]
[398931137,1766004639472,-151.0,0.00013591,2]
[398931138,1766004639482,-151.0,0.00013591,2]
[398931139,1766004639491,-151.0,0.00013591,2]
[398931140,1766004639500,-194.21929349,0.00013591,2]
[398931141,1766004639509,-151.0,0.00013591,2]
[398931142,1766004639518,-151.0,0.00013591,2]
[398931143,1766004639528,-151.0,0.00013591,2]
[398931144,1766004639537,-151.0,0.00013591,2]
[398931145,1766004639546,-151.0,0.00013591,2]
[398931146,1766004639555,-200.0,0.00013591,2]
[398931147,1766004639564,-151.0,0.00013591,2]
[398931148,1766004639573,-151.0,0.00013591,2]
[398931149,1766004639582,-151.0,0.00013591,2]
[398931150,1766004639591,-151.0,0.00013591,2]
[398931151,1766004639600,-151.0,0.00013591,2]
[398931152,1766004639609,-151.0,0.00013591,2]
[398931153,1766004639618,-500.0,0.00013591,2]
[398931154,1766004639627,-151.0,0.00013591,2]
[398931155,1766004639636,-500.0,0.00013591,2]
[398931156,1766004639645,-151.0,0.00013591,2]
[398931157,1766004639653,-500.0,0.00013591,2]
[398931158,1766004639662,-151.0,0.00013591,2]
[398931159,1766004639671,-500.0,0.00013591,2]
[398931160,1766004639680,-151.0,0.00013591,2]
[398931161,1766004639689,-500.0,0.00013591,2]
[398931162,1766004639698,-500.0,0.00013591,2]
[398931163,1766004639707,-151.0,0.00013591,2]
[398931164,1766004639716,-151.0,0.00013591,2]
[398931165,1766004639726,-151.0,0.00013591,2]
[398931166,1766004639735,-500.0,0.00013591,2]
[398931167,1766004639744,-151.0,0.00013591,2]
[398931168,1766004639753,-500.0,0.00013591,2]
[398931169,1766004639762,-151.0,0.00013591,2]
[398931170,1766004639770,-500.0,0.00013591,2]
[398931171,1766004639781,-151.0,0.00013591,2]
[398931172,1766004639790,-500.0,0.00013591,2]
[398931173,1766004639800,-151.0,0.00013591,2]
[398931174,1766004639810,-500.0,0.00013591,2]
[398931175,1766004639819,-151.0,0.00013591,2]
[398931176,1766004639828,-500.0,0.00013591,2]
[398931177,1766004639837,-151.0,0.00013591,2]
[398931178,1766004639846,-500.0,0.00013591,2]
[398931179,1766004639855,-151.0,0.00013591,2]
[398931180,1766004639864,-500.0,0.00013591,2]
[398931181,1766004639873,-151.0,0.00013591,2]
[398931182,1766004639883,-500.0,0.00013591,2]
[398931183,1766004639892,-151.0,0.00013591,2]